fUST/lending_fUST_20260114
["ID","MTS","AMOUNT","RATE_DAILY","PERIOD"]
[401905940,1768399676452,-500.0,9.239e-05,2]
[401905941,1768399676477,-500.0,9.239e-05,2]
[401905942,1768399676503,-500.0,9.239e-05,2]
[401905943,1768399676529,-500.0,9.239e-05,2]
[401905944,1768399676556,-500.0,9.239e-05,2]
[401905945,1768399676583,-500.0,9.239e-05,2]
[401905946,1768399676607,-500.0,9.239e-05,2]
[401905947,1768399676630,-500.0,9.239e-05,2]
[401905948,1768399676656,-500.0,9.239e-05,2]
[401905949,1768399676683,-500.0,9.239e-05,2]
[401905950,1768399676709,-500.0,9.239e-05,2]
[401905951,1768399676734,-200.0,9.239e-05,2]
[401905952,1768399676758,-500.0,9.239e-05,2]
[401905953,1768399676784,-500.0,9.239e-05,2]
[401905954,1768399676810,-500.0,9.239e-05,2]
[401905955,1768399676836,-500.0,9.239e-05,2]
[401905956,1768399676862,-500.0,9.239e-05,2]
[401905957,1768399676889,-500.0,9.239e-05,2]
[401905958,1768399676916,-500.0,9.239e-05,2]
[401905959,1768399676941,-500.0,9.239e-05,2]
[401905960,1768399676968,-500.0,9.239e-05,2]
[401905961,1768399676996,-600.0,9.239e-05,2]
[401905962,1768399677028,-500.0,9.239e-05,2]
[401905963,1768399677056,-500.0,9.239e-05,2]
[401905964,1768399677082,-500.0,9.239e-05,2]
[401905965,1768399677108,-500.0,9.239e-05,2]
[401905966,1768399677134,-500.0,9.239e-05,2]
[401905967,1768399677159,-500.0,9.239e-05,2]
[401905968,1768399677185,-500.0,9.239e-05,2]
[401905969,1768399677209,-500.0,9.239e-05,2]
[401905970,1768399677237,-500.0,9.239e-05,2]
[401905971,1768399677262,-500.0,9.239e-05,2]
[401905972,1768399677287,-500.0,9.239e-05,2]
[401905973,1768399677312,-500.0,9.239e-05,2]
[401905974,1768399677337,-500.0,9.239e-05,2]
[401905975,1768399677363,-500.0,9.239e-05,2]
[401905976,1768399677390,-500.0,9.239e-05,2]
[401905977,1768399677416,-500.0,9.239e-05,2]
[401905978,1768399677444,-500.0,9.239e-05,2]
[401905979,1768399677472,-500.0,9.239e-05,2]
[401905980,1768399677498,-500.0,9.239e-05,2]
[401905981,1768399677524,-500.0,9.239e-05,2]
[401905982,1768399677549,-500.0,9.239e-05,2]
[401905983,1768399677574,-197.79907395,9.239e-05,2]
[401905984,1768399677599,-500.0,9.239e-05,2]
[401905985,1768399677625,-500.0,9.239e-05,2]
[401905986,1768399677648,-170348.8150847,9.261e-05,2]
[401905987,1768399677672,-602.41515402,9.33e-05,2]
[401905988,1768399677698,-300.0,9.422e-05,2]
[401905989,1768399677727,-300.0,9.422e-05,2]
[401905990,1768399677752,-300.0,9.422e-05,2]
[401905991,1768399677779,-300.0,9.422e-05,2]
[401905992,1768399677803,-300.0,9.422e-05,2]
[401905993,1768399677830,-300.0,9.422e-05,2]
[401905994,1768399677855,-300.0,9.422e-05,2]
[401905995,1768399677882,-300.0,9.422e-05,2]
[401905996,1768399677909,-300.0,9.422e-05,2]
[401905997,1768399678111,-300.0,9.422e-05,2]
[401905998,1768399678136,-300.0,9.422e-05,2]
[401905999,1768399678161,-300.0,9.422e-05,2]
[401906000,1768399678185,-300.0,9.422e-05,2]
[401906001,1768399678209,-300.0,9.422e-05,2]
[401906002,1768399678243,-300.0,9.422e-05,2]
[401906003,1768399678269,-600.0,9.422e-05,2]
[401906005,1768399737060,-818243.43012142,9.141e-05,2]
[401906006,1768399802531,475.84,3e-05,2]
[401906007,1768399803136,475.84,3e-05,2]
[401906008,1768399803493,475.84,3.1e-05,2]
[401906009,1768399804430,475.84,3.1e-05,2]
[401906010,1768399804529,475.84,3.2e-05,2]
[401906011,1768399804635,475.84,3.2e-05,2]
[401906012,1768399804764,475.84,3.2e-05,2]
[401906013,1768399805106,475.84,3.3e-05,2]
[401906014,1768399805474,475.84,3.3e-05,2]
[401906015,1768399805762,475.84,3.4e-05,2]
[401906016,1768399806717,475.84,3.4e-05,2]
[401906017,1768399807093,475.84,3.4e-05,2]
[401906018,1768399807397,475.84,3.5e-05,2]
[401906019,1768399807828,475.84,3.5e-05,2]
[401906020,1768399808173,475.84,3.6e-05,2]
[401906021,1768399808471,475.84,3.6e-05,2]
[401906022,1768399808806,475.84,3.7e-05,2]
[401906023,1768399809085,475.84,3.7e-05,2]
[401906024,1768399809633,475.84,3.7e-05,2]
[401906025,1768399809931,475.84,3.8e-05,2]
[401906026,1768399810303,475.84,3.8e-05,2]
[401906027,1768399810705,7.37,3.9e-05,2]
[401906028,1768399810730,468.47,3.9e-05,2]
[401906029,1768399811011,475.84,3.9e-05,2]
[401906030,1768399811637,475.84,3.9e-05,2]
[401906031,1768399811971,475.84,4e-05,2]
[401906032,1768399812327,475.84,4e-05,2]
[401906033,1768399812632,475.84,4.1e-05,2]
[401906034,1768399812941,475.84,4.1e-05,2]
[401906035,1768399813307,475.84,4.1e-05,2]
[401906036,1768399814277,475.84,4.2e-05,2]
[401906037,1768399814937,475.84,4.2e-05,2]
[401906038,1768399815042,475.84,4.3e-05,2]
[401906039,1768399815275,475.84,4.3e-05,2]
[401906040,1768399815613,475.84,4.3e-05,2]
[401906041,1768399815944,475.84,4.4e-05,2]
[401906042,1768399816307,475.84,4.4e-05,2]
[401906043,1768399816922,475.84,4.5e-05,2]
[401906044,1768399817223,475.84,4.5e-05,2]
[401906045,1768399817537,475.84,4.6e-05,2]
[401906046,1768399817838,475.84,4.6e-05,2]
[401906047,1768399818136,475.84,4.6e-05,2]
[401906048,1768399818451,475.84,4.7e-05,2]
[401906049,1768399818761,14.74,4.7e-05,2]
[401906050,1768399818788,461.1,4.7e-05,2]
[401906051,1768399819057,475.84,4.8e-05,2]
[401906052,1768399819365,475.84,4.8e-05,2]
[401906053,1768399819673,475.84,4.8e-05,2]
[401906054,1768399819976,475.84,4.9e-05,2]
[401906055,1768399820316,475.84,4.9e-05,2]
[401906056,1768399820628,475.84,5e-05,2]
[401906057,1768399821841,475.74,3e-05,2]
[401906066,1768399832382,-3298.5440809,9.264e-05,2]
[401906067,1768399832393,-550.0,9.264e-05,2]
[401906068,1768399832403,-600.0,9.323e-05,2]
[401906069,1768399832413,-1000.0,0.0001,2]
[401906070,1768399832423,-641.72337868,0.0001,2]
[401906071,1768399832433,-300.0,0.00010162,2]
[401906072,1768399832443,-300.0,0.00010162,2]
[401906073,1768399832453,-300.0,0.00010162,2]
[401906074,1768399832462,-1200.0,0.00010162,2]
[401906075,1768399832472,-720.0,0.00010255,2]
[401906076,1768399832481,-464.45162362,0.00010364,2]
[401906077,1768399832491,-198.72099039,0.00010365,2]
[401906084,1768399838479,-375.01172011,0.00010364,2]
[401906085,1768399838488,-86.97327989,0.00010364,2]
[401906086,1768399838650,-391.98869868,0.00010364,2]
[401906087,1768399838660,-444.56068386,0.00010364,2]
[401906088,1768399838669,-500.0,0.00010364,2]
[401906089,1768399838679,-500.0,0.00010364,2]
[401906090,1768399838688,-164.20223583,0.00010364,2]
[401906091,1768399838698,-500.0,0.00010364,2]
[401906092,1768399838707,-500.0,0.00010364,2]
[401906093,1768399838716,-500.0,0.00010364,2]
[401906094,1768399838725,-500.0,0.00010364,2]
[401906095,1768399838745,-500.0,0.00010364,2]
[401906096,1768399838756,-477.53805719,0.00010364,2]
[401906097,1768399838767,-483.68776848,0.00010364,2]
[401906098,1768399838777,-500.0,0.00010364,2]
[401906099,1768399838787,-294.77990739,0.00010364,2]
[401906100,1768399838798,-49801.27900961,0.00010365,2]
[401906101,1768399838808,-300.0,0.00010365,2]
[401906102,1768399838818,-300.0,0.00010365,2]
[401906103,1768399838828,-300.0,0.00010365,2]
[401906104,1768399838838,-300.0,0.00010365,2]
[401906105,1768399838848,-300.0,0.00010365,2]
[401906106,1768399838858,-300.0,0.00010365,2]
[401906107,1768399838868,-300.0,0.00010365,2]
[401906108,1768399838879,-300.0,0.00010365,2]
[401906109,1768399838890,-300.0,0.00010365,2]
[401906110,1768399838901,-300.0,0.00010365,2]
[401906111,1768399838912,-300.0,0.00010365,2]
[401906112,1768399838923,-300.0,0.00010365,2]
[401906113,1768399838933,-300.0,0.00010365,2]
[401906114,1768399838943,-300.0,0.00010365,2]
[401906115,1768399838953,-300.0,0.00010365,2]
[401906116,1768399838963,-255.0,0.0001037,2]
[401906117,1768399838973,-3710.862091,0.00010779,2]
[401906118,1768399838982,-155.0,0.00010793,2]
[401906119,1768399838993,-219.27312391,0.00010838,2]
[401906120,1768399839003,-2212.64504451,0.00010852,2]
[401906121,1768399839012,-1500.0,0.00010959,2]
[401906122,1768399839022,-1965.205,0.00010959,2]
[401906123,1768399839032,-151.0,0.00011,2]
[401906124,1768399839042,-151.0,0.00011,2]
[401906125,1768399839052,-151.0,0.00011,2]
[401906126,1768399839061,-500.0,0.00011,2]
[401906127,1768399839072,-222.0,0.0001108,2]
[401906128,1768399839081,-151.0,0.000111,2]
[401906129,1768399839091,-151.0,0.000111,2]
[401906130,1768399839101,-151.0,0.000111,2]
[401906131,1768399839111,-151.0,0.000111,2]
[401906132,1768399839123,-151.0,0.000111,2]
[401906133,1768399839133,-151.0,0.000111,2]
[401906134,1768399839144,-420.0,0.00011176,2]
[401906135,1768399839156,-420.0,0.00011176,2]
[401906136,1768399839165,-1680.0,0.00011178,2]
[401906137,1768399839175,-1000.0,0.000112,2]
[401906138,1768399839185,-1000.0,0.000112,2]
[401906139,1768399839195,-1000.0,0.000112,2]
[401906140,1768399839205,-1000.0,0.000112,2]
[401906141,1768399839214,-1000.0,0.000112,2]
[401906142,1768399839224,-1000.0,0.000112,2]
[401906143,1768399839234,-1000.0,0.000112,2]
[401906144,1768399839248,-1000.0,0.000112,2]
[401906145,1768399839258,-1000.0,0.000112,2]
[401906146,1768399839268,-1000.0,0.000112,2]
[401906147,1768399839281,-151.0,0.000112,2]
[401906148,1768399839299,-38009.9583909,0.0001124,2]
[401906149,1768399839316,-500.0,0.00011274,2]
[401906150,1768399839326,-864.0,0.0001128,2]
[401906151,1768399839336,-710.84988175,0.0001133,2]
[401906152,1768399839346,-500.0,0.00011548,2]
[401906153,1768399839356,-1500.0,0.0001166,2]
[401906154,1768399839366,-8481.168103,0.00011682,2]
[401906155,1768399839378,-500.0,0.00011822,2]
[401906156,1768399839388,-500.0,0.00012096,2]
[401906157,1768399839398,-4123.1801012,0.00012135,2]
[401906158,1768399839409,-250.0,0.00012241,2]
[401906159,1768399839419,-587.0,0.00012292,2]
[401906160,1768399839429,-587.0,0.00012292,2]
[401906161,1768399839438,-2351.0,0.00012296,2]
[401906162,1768399839448,-5575.45,0.00012329,2]
[401906163,1768399839458,-4646.2,0.00012329,2]
[401906164,1768399839470,-3871.84,0.00012329,2]
[401906165,1768399839481,-3226.53,0.00012329,2]
[401906166,1768399839491,-2688.78,0.00012329,2]
[401906167,1768399839501,-2240.65,0.00012329,2]
[401906168,1768399839512,-1867.2,0.00012329,2]
[401906169,1768399839522,-1556.0,0.00012329,2]
[401906170,1768399839532,-1296.67,0.00012329,2]
[401906171,1768399839542,-1080.56,0.00012329,2]
[401906172,1768399839552,-900.47,0.00012329,2]
[401906173,1768399839562,-750.39,0.00012329,2]
[401906174,1768399839572,-625.32,0.00012329,2]
[401906175,1768399839586,-521.1,0.00012329,2]
[401906176,1768399839596,-434.25,0.00012329,2]
[401906177,1768399839606,-361.88,0.00012329,2]
[401906178,1768399839615,-301.56,0.00012329,2]
[401906179,1768399839626,-251.3,0.00012329,2]
[401906180,1768399839636,-209.42,0.00012329,2]
[401906181,1768399839646,-174.52,0.00012329,2]
[401906182,1768399839655,-872.61,0.00012329,2]
[401906183,1768399839665,-1126.22646288,0.00012329,2]
[401906184,1768399839675,-1126.22646288,0.00012329,2]
[401906185,1768399839684,-1126.22646288,0.00012329,2]
[401906186,1768399839694,-1126.22646288,0.00012329,2]
[401906187,1768399839704,-1126.22646288,0.00012329,2]
[401906188,1768399839713,-1126.22646288,0.00012329,2]
[401906189,1768399839723,-1126.22646288,0.00012329,2]
[401906190,1768399839732,-1126.22646288,0.00012329,2]
[401906191,1768399839742,-1126.22646288,0.00012329,2]
[401906192,1768399839751,-1126.22646288,0.00012329,2]
[401906193,1768399839761,-1126.22646288,0.00012329,2]
[401906194,1768399839771,-1126.22646288,0.00012329,2]
[401906195,1768399839781,-1126.22646288,0.00012329,2]
[401906196,1768399839790,-1126.22646288,0.00012329,2]
[401906197,1768399839800,-1126.22646288,0.00012329,2]
[401906198,1768399839809,-1126.22646288,0.00012329,2]
[401906199,1768399839819,-1126.22646288,0.00012329,2]
[401906200,1768399839829,-1126.22646288,0.00012329,2]
[401906201,1768399839839,-1126.22646288,0.00012329,2]
[401906202,1768399839849,-1126.22646288,0.00012329,2]
[401906203,1768399839859,-1126.22646288,0.00012329,2]
[401906204,1768399839869,-1126.22646288,0.00012329,2]
[401906205,1768399839880,-1126.22646288,0.00012329,2]
[401906206,1768399839890,-1126.22646288,0.00012329,2]
[401906207,1768399839900,-1126.22646288,0.00012329,2]
[401906208,1768399839910,-1126.22646288,0.00012329,2]
[401906209,1768399839920,-1126.22646288,0.00012329,2]
[401906210,1768399839930,-1126.22646288,0.00012329,2]
[401906211,1768399839940,-1126.22646288,0.00012329,2]
[401906212,1768399839950,-1126.22646288,0.00012329,2]
[401906213,1768399839960,-1126.22646288,0.00012329,2]
[401906214,1768399839970,-1126.22646288,0.00012329,2]
[401906215,1768399839980,-1126.22646288,0.00012329,2]
[401906216,1768399839989,-1126.22646288,0.00012329,2]
[401906217,1768399839999,-1126.22646288,0.00012329,2]
[401906218,1768399840009,-1126.22646288,0.00012329,2]
[401906219,1768399840019,-1126.22646288,0.00012329,2]
[401906220,1768399840029,-1126.22646288,0.00012329,2]
[401906221,1768399840039,-1126.22646288,0.00012329,2]
[401906222,1768399840049,-1126.22646288,0.00012329,2]
[401906223,1768399840059,-1126.22646288,0.00012329,2]
[401906224,1768399840071,-1126.22646288,0.00012329,2]
[401906225,1768399840081,-1126.22646288,0.00012329,2]
[401906226,1768399840090,-1126.22646288,0.00012329,2]
[401906227,1768399840100,-1126.22646288,0.00012329,2]
[401906228,1768399840110,-1126.22646288,0.00012329,2]
[401906229,1768399840120,-1126.22646288,0.00012329,2]
[401906230,1768399840131,-1126.22646288,0.00012329,2]
[401906231,1768399840141,-1126.22646288,0.00012329,2]
[401906232,1768399840150,-1126.22646288,0.00012329,2]
[401906233,1768399840160,-1126.22646288,0.00012329,2]
[401906234,1768399840169,-1126.22646288,0.00012329,2]
[401906235,1768399840179,-1126.22646288,0.00012329,2]
[401906236,1768399840189,-1000.0,0.00012408,2]
[401906237,1768399840199,-547.00656757,0.00013273,2]
[401906238,1768399840209,-500.0,0.00013273,2]
[401906239,1768399840219,-500.0,0.00013273,2]
[401906240,1768399840228,-167.63409657,0.00013273,2]
[401906241,1768399840238,-500.0,0.00013273,2]
[401906242,1768399840247,-316.29207451,0.00013273,2]
[401906244,1768399840257,-500.0,0.00013273,2]
[401906246,1768399840268,-161.32472846,0.00013273,2]
[401906247,1768399840281,-500.0,0.00013273,2]
[401906248,1768399840291,-500.0,0.00013273,2]
[401906249,1768399840300,-500.0,0.00013273,2]
[401906250,1768399840311,-501.85584568,0.00013273,2]
[401906251,1768399840322,-500.0,0.00013273,2]
[401906252,1768399840332,-500.0,0.00013273,2]
[401906253,1768399840342,-500.0,0.00013273,2]
[401906254,1768399840351,-500.0,0.00013273,2]
[401906255,1768399840361,-500.0,0.00013273,2]
[401906256,1768399840371,-500.0,0.00013273,2]
[401906257,1768399840380,-500.0,0.00013273,2]
[401906258,1768399840390,-197.368112,0.00013273,2]
[401906259,1768399840399,-162.00337471,0.00013273,2]
[401906261,1768399840408,-500.0,0.00013273,2]
[401906262,1768399840418,-500.0,0.00013273,2]
[401906263,1768399840427,-500.0,0.00013273,2]
[401906264,1768399840437,-500.21355158,0.00013273,2]
[401906265,1768399840447,-533.7544997,0.00013273,2]
[401906266,1768399840456,-500.0,0.00013273,2]
[401906267,1768399840465,-500.0,0.00013273,2]
[401906268,1768399840474,-500.18250774,0.00013273,2]
[401906269,1768399840483,-500.49098579,0.00013273,2]
[401906270,1768399840493,-500.0,0.00013273,2]
[401906271,1768399840502,-500.0,0.00013273,2]
[401906272,1768399840512,-520.1094365,0.00013273,2]
[401906273,1768399840522,-185.624668,0.00013273,2]
[401906274,1768399840532,-500.0,0.00013273,2]
[401906275,1768399840541,-500.0,0.00013273,2]
[401906276,1768399840551,-500.0,0.00013273,2]
[401906277,1768399840560,-500.0,0.00013273,2]
[401906278,1768399840569,-500.0,0.00013273,2]
[401906279,1768399840579,-500.0,0.00013273,2]
[401906280,1768399840588,-500.0,0.00013273,2]
[401906281,1768399840598,-500.28056306,0.00013273,2]
[401906282,1768399840607,-500.0,0.00013273,2]
[401906283,1768399840616,-500.0,0.00013273,2]
[401906284,1768399840627,-261.59054001,0.00013273,2]
[401906286,1768399840636,-500.0,0.00013273,2]
[401906287,1768399840645,-500.0,0.00013273,2]
[401906288,1768399840654,-500.20354178,0.00013273,2]
[401906289,1768399840664,-500.25674362,0.00013273,2]
[401906290,1768399840673,-500.0,0.00013273,2]
[401906291,1768399840682,-500.0,0.00013273,2]
[401906292,1768399840692,-195.77760179,0.00013273,2]
[401906293,1768399840701,-500.0,0.00013273,2]
[401906294,1768399840711,-500.0,0.00013273,2]
[401906295,1768399840720,-500.0,0.00013273,2]
[401906296,1768399840730,-500.0,0.00013273,2]
[401906297,1768399840739,-501.03457385,0.00013273,2]
[401906298,1768399840748,-819.28460947,0.0001333,2]
[401906299,1768399840758,-4535.4981113,0.00013361,2]
[401906300,1768399840767,-160.0,0.0001338,2]
[401906301,1768399840776,-160.0,0.0001338,2]
[401906302,1768399840785,-164.08273023,0.0001338,2]
[401906303,1768399840795,-30000.0,0.0001338,2]
[401906304,1768399840804,-250.0,0.0001338,2]
[401906305,1768399840814,-500.0,0.0001338,2]
[401906306,1768399840823,-500.0,0.0001338,2]
[401906307,1768399840833,-500.0,0.0001338,2]
[401906308,1768399840842,-500.0,0.0001338,2]
[401906309,1768399840852,-500.0,0.0001338,2]
[401906310,1768399840861,-500.0,0.0001338,2]
[401906311,1768399840874,-500.0,0.0001338,2]
[401906312,1768399840884,-500.0,0.0001338,2]
[401906313,1768399840894,-500.0,0.0001338,2]
[401906314,1768399840903,-500.0,0.0001338,2]
[401906315,1768399840912,-500.0,0.0001338,2]
[401906316,1768399840921,-168.3888056,0.0001338,2]
[401906317,1768399840931,-500.0,0.0001338,2]
[401906318,1768399840940,-500.0,0.0001338,2]
[401906319,1768399840949,-500.0,0.0001338,2]
[401906321,1768399840959,-500.0,0.0001338,2]
[401906322,1768399840968,-500.0,0.0001338,2]
[401906323,1768399840979,-500.0,0.0001338,2]
[401906324,1768399840990,-461.67526834,0.0001338,2]
[401906325,1768399841001,-2230.315306,0.0001338,2]
[401906326,1768399841010,-168.3888056,0.0001338,2]
[401906327,1768399841020,-823.0,0.00013519,2]
[401906328,1768399841030,-823.0,0.00013519,2]
[401906329,1768399841040,-3292.0,0.00013526,2]
[401906330,1768399841052,-1000.0,0.00013649,2]
[401906331,1768399841062,-244.0,0.00013649,2]
[401906332,1768399841322,-300.0,0.00013673,2]
[401906333,1768399841333,-500.0,0.00013698,2]
[401906334,1768399841345,-500.0,0.00013698,2]
[401906335,1768399841354,-500.0,0.00013698,2]
[401906336,1768399841364,-500.0,0.00013698,2]
[401906337,1768399841374,-550.39437847,0.00013698,2]
[401906338,1768399841384,-1000.0,0.00013698,2]
[401906339,1768399841393,-1000.0,0.00013698,2]
[401906340,1768399841403,-1000.0,0.00013698,2]
[401906341,1768399841412,-1000.0,0.00013698,2]
[401906342,1768399841421,-1000.0,0.00013698,2]
[401906343,1768399841431,-1000.0,0.00013698,2]
[401906344,1768399841440,-1000.0,0.00013698,2]
[401906345,1768399841450,-1017.75755303,0.00013698,2]
[401906346,1768399841459,-525.94,0.00013698,2]
[401906347,1768399841469,-525.94,0.00013698,2]
[401906348,1768399841479,-525.94,0.00013698,2]
[401906349,1768399841490,-525.94,0.00013698,2]
[401906350,1768399841499,-525.94,0.00013698,2]
[401906351,1768399841508,-525.94,0.00013698,2]
[401906352,1768399841518,-525.94,0.00013698,2]
[401906353,1768399841527,-525.94,0.00013698,2]
[401906354,1768399841536,-525.94,0.00013698,2]
[401906355,1768399841545,-525.94,0.00013698,2]
[401906356,1768399841555,-525.94,0.00013698,2]
[401906357,1768399841566,-525.94,0.00013698,2]
[401906358,1768399841575,-525.94,0.00013698,2]
[401906359,1768399841584,-525.94,0.00013698,2]
[401906360,1768399841594,-525.94,0.00013698,2]
[401906361,1768399841603,-525.94,0.00013698,2]
[401906362,1768399841612,-525.94,0.00013698,2]
[401906363,1768399841624,-525.94,0.00013698,2]
[401906364,1768399841634,-525.94,0.00013698,2]
[401906365,1768399841643,-525.94,0.00013698,2]
[401906366,1768399841652,-525.94,0.00013698,2]
[401906367,1768399841661,-525.94,0.00013698,2]
[401906368,1768399841670,-525.94,0.00013698,2]
[401906369,1768399841679,-526.04678427,0.00013698,2]
[401906370,1768399841688,-500.0,0.00013698,2]
[401906371,1768399841697,-500.0,0.00013698,2]
[401906372,1768399841706,-500.0,0.00013698,2]
[401906373,1768399841715,-500.0,0.00013698,2]
[401906374,1768399841724,-500.0,0.00013698,2]
[401906375,1768399841733,-500.0,0.00013698,2]
[401906376,1768399841742,-500.0,0.00013698,2]
[401906377,1768399841751,-500.0,0.00013698,2]
[401906378,1768399841760,-500.0,0.00013698,2]
[401906379,1768399841769,-500.0,0.00013698,2]
[401906380,1768399841779,-500.0,0.00013698,2]
[401906381,1768399841788,-582.4382982,0.00013698,2]
[401906382,1768399841797,-518.87817295,0.00013698,2]
[401906383,1768399841806,-500.0,0.00013698,2]
[401906384,1768399841819,-500.0,0.00013698,2]
[401906385,1768399841828,-500.0,0.00013698,2]
[401906386,1768399841837,-453.8287473,0.00013698,2]
[401906387,1768399841846,-1593.3,0.00013698,2]
[401906388,1768399841855,-1593.3,0.00013698,2]
[401906389,1768399841865,-1593.3,0.00013698,2]
[401906390,1768399841876,-1593.3,0.00013698,2]
[401906391,1768399841885,-1593.3,0.00013698,2]
[401906392,1768399841895,-1593.3,0.00013698,2]
[401906393,1768399841904,-1593.3,0.00013698,2]
[401906394,1768399841913,-1593.3,0.00013698,2]
[401906395,1768399841923,-1593.3,0.00013698,2]
[401906396,1768399841932,-1593.3,0.00013698,2]
[401906397,1768399841941,-1593.3,0.00013698,2]
[401906398,1768399841950,-1593.3,0.00013698,2]
[401906399,1768399841959,-1593.3,0.00013698,2]
[401906400,1768399841968,-1593.3,0.00013698,2]
[401906401,1768399841977,-1593.3,0.00013698,2]
[401906402,1768399841986,-1593.3,0.00013698,2]
[401906403,1768399841995,-1593.3,0.00013698,2]
[401906404,1768399842004,-1593.3,0.00013698,2]
[401906405,1768399842014,-1593.3,0.00013698,2]
[401906406,1768399842023,-1593.3,0.00013698,2]
[401906407,1768399842032,-1593.3,0.00013698,2]
[401906408,1768399842041,-1593.3,0.00013698,2]
[401906409,1768399842050,-1593.3,0.00013698,2]
[401906410,1768399842059,-1593.3055421,0.00013698,2]
[401906411,1768399842069,-504.29229129,0.00013698,2]
[401906412,1768399842078,-500.0,0.00013698,2]
[401906413,1768399842087,-500.0,0.00013698,2]
[401906414,1768399842096,-500.0,0.00013698,2]
[401906415,1768399842105,-559.52204836,0.00013698,2]
[401906416,1768399842114,-500.0,0.00013698,2]
[401906417,1768399842123,-500.0,0.00013698,2]
[401906418,1768399842132,-500.0,0.00013698,2]
[401906419,1768399842141,-500.0,0.00013698,2]
[401906420,1768399842151,-500.0,0.00013698,2]
[401906421,1768399842160,-500.0,0.00013698,2]
[401906422,1768399842169,-500.0,0.00013698,2]
[401906423,1768399842178,-640.1566523,0.00013698,2]
[401906424,1768399842187,-500.0,0.00013698,2]
[401906425,1768399842196,-500.0,0.00013698,2]
[401906426,1768399842205,-500.0,0.00013698,2]
[401906427,1768399842214,-500.0,0.00013698,2]
[401906428,1768399842223,-500.0,0.00013698,2]
[401906429,1768399842232,-500.0,0.00013698,2]
[401906430,1768399842241,-260.74557216,0.00013698,2]
[401906431,1768399842250,-500.0,0.00013698,2]
[401906432,1768399842259,-500.0,0.00013698,2]
[401906433,1768399842270,-500.0,0.00013698,2]
[401906434,1768399842280,-500.0,0.00013698,2]
[401906435,1768399842289,-500.0,0.00013698,2]
[401906436,1768399842298,-500.0,0.00013698,2]
[401906437,1768399842306,-500.0,0.00013698,2]
[401906438,1768399842315,-500.0,0.00013698,2]
[401906439,1768399842324,-500.0,0.00013698,2]
[401906440,1768399842333,-500.0,0.00013698,2]
[401906441,1768399842345,-500.0,0.00013698,2]
[401906442,1768399842354,-500.0,0.00013698,2]
[401906443,1768399842363,-500.0,0.00013698,2]
[401906444,1768399842373,-500.0,0.00013698,2]
[401906445,1768399842382,-500.0,0.00013698,2]
[401906446,1768399842392,-500.0,0.00013698,2]
[401906447,1768399842402,-500.0,0.00013698,2]
[401906448,1768399842411,-500.0,0.00013698,2]
[401906449,1768399842421,-500.0,0.00013698,2]
[401906450,1768399842430,-516.10527878,0.00013698,2]
[401906451,1768399842439,-500.0,0.00013698,2]
[401906452,1768399842448,-500.0,0.00013698,2]
[401906453,1768399842458,-253.34510422,0.00013698,2]
[401906454,1768399842467,-500.0,0.00013698,2]
[401906455,1768399842475,-500.0,0.00013698,2]
[401906456,1768399842484,-500.0,0.00013698,2]
[401906457,1768399842494,-500.0,0.00013698,2]
[401906458,1768399842503,-500.0,0.00013698,2]
[401906459,1768399842512,-500.0,0.00013698,2]